bitfinex-derivatives/quotes_ETHF0:USTF0_20240830
["timestamp","ask_amount","ask_price","bid_price","bid_amount"]
[1724976238583,1.03066461,2525.5,2525.4,0.39587]
[1724976238770,1.03066461,2525.5,2525.4,5.12037]
[1724976238973,1.03066461,2525.5,2525.4,5.48127]
[1724976239182,1.03066461,2525.5,2525.4,5.0854]
[1724976240576,1.03066461,2525.5,2525.4,5.48127]
[1724976241579,1.03066461,2525.5,2525.4,5.0854]
[1724976241779,1.03066461,2525.5,2525.4,5.48127]
[1724976241980,1.03066461,2525.5,2525.4,5.0854]
[1724976242485,2.45687049,2525.5,2525.4,0.7359]
[1724976242878,0.39586,2525.5,2525.4,0.7359]
[1724976243995,2.06101049,2525.6,2525.4,0.7359]
[1724976244177,1.5468335,2525.5,2525.4,5.09177]
[1724976244381,1.5468335,2525.6,2525.4,1.13176]
[1724976244578,0.39583,2525.7,2525.4,1.13176]
[1724976244579,1.0313934,2525.5,2525.4,1.13176]
[1724976244785,1.0313934,2525.6,2525.4,1.13176]
[1724976245177,1.0313934,2525.6,2525.4,5.09176]
[1724976245380,1.0313934,2525.6,2525.5,7.77586]
[1724976245587,1.5468335,2525.9,2525.5,7.38]
[1724976245783,2.06101049,2526.0,2525.5,7.38]
[1724976245784,1.0316114,2526.0,2525.9,0.39578]
[1724976246083,1.03754988,2526.2,2526.0,0.39578]
[1724976246291,1.03754988,2526.2,2526.0,4.3226]
[1724976246590,1.0316114,2526.1,2526.0,0.3642]
[1724976247091,1.03754988,2526.2,2526.0,4.3226]
[1724976248186,0.00593848,2526.2,2526.0,4.3226]
[1724976248387,0.00593848,2526.2,2526.0,7.5304]
[1724976248989,0.00593848,2526.2,2526.0,7.8948]
[1724976249986,1.03754988,2526.2,2526.0,4.687]
[1724976250181,1.03754988,2526.2,2526.0,7.8948]
[1724976250375,1.43329988,2526.2,2526.0,3.9364]
[1724976250581,1.43329988,2526.2,2526.0,3.572]
[1724976252488,0.39576,2526.1,2526.0,3.572]
[1724976256292,1.42703794,2526.1,2526.0,3.572]
[1724976258283,1.42703794,2526.1,2526.0,0.3642]
[1724976258692,1.42703794,2526.1,2526.0,3.572]
[1724976259096,0.39576,2526.1,2526.0,3.572]
[1724976260299,0.39576,2526.1,2526.0,3.2078]
[1724976260899,0.77866,2526.1,2526.0,3.2078]
[1724976261097,0.3829,2526.1,2526.0,3.2078]
[1724976261295,2.17686642,2526.2,2526.0,3.2078]
[1724976261695,0.39576,2526.1,2526.0,3.2078]
[1724976262295,0.39576,2526.1,2525.8,0.3958]
[1724976262601,0.39576,2526.1,2526.0,3.2078]
[1724976263501,18.73143955,2526.1,2525.3,8.48e-06]
[1724976263699,0.39587,2525.4,2525.3,8.48e-06]
[1724976263889,1.0297666,2525.7,2525.3,8.48e-06]
[1724976264091,0.3628,2525.7,2525.3,3.20780848]
[1724976264301,0.3628,2525.7,2525.5,0.39584]
[1724976264699,0.3628,2525.7,2525.6,0.3809]
[1724976265205,1.4138666,2526.0,2525.7,0.39582]
[1724976265495,1.4138666,2526.0,2525.6,7.40453]
[1724976265496,0.77989,2526.0,2525.6,7.40453]
[1724976265703,0.3841,2526.0,2525.7,0.39583]
[1724976266304,0.77988,2526.0,2525.7,0.39583]
[1724976267402,1.02987918,2526.4,2525.9,6.6278]
[1724976267601,0.379,2526.9,2526.3,6.6278]
[1724976267803,0.379,2526.9,2526.4,3.60351]
[1724976267995,0.39565,2526.8,2526.4,3.60351]
[1724976268307,0.379,2526.9,2526.4,3.60351]
[1724976268308,0.77465,2526.9,2526.4,3.60351]
[1724976268499,0.77465,2526.9,2526.5,0.3957]
[1724976268500,0.78058848,2526.9,2526.5,0.3957]
[1724976268804,0.78058848,2526.9,2526.7,3.2078]
[1724976268805,0.38493848,2526.9,2526.7,3.2078]
[1724976269506,0.78058848,2526.9,2526.7,3.2078]
[1724976270410,0.78058848,2526.9,2526.6,3.2078]
[1724976270802,0.39566,2526.8,2526.6,3.2078]
[1724976271003,0.78057848,2526.9,2526.6,3.2078]
[1724976272199,0.78057848,2526.9,2526.5,0.3957]
[1724976272404,0.78057848,2526.9,2526.6,3.2078]
[1724976272800,0.38493848,2526.9,2526.6,3.60348]
[1724976273005,0.38493848,2526.9,2526.8,3.42]
[1724976273307,0.38493848,2526.9,2526.8,3.81565]
[1724976273502,0.38493848,2526.9,2526.8,7.77325]
[1724976273702,0.38493848,2526.9,2526.8,7.3776]
[1724976274102,0.38493848,2526.9,2526.6,3.60941848]
[1724976275307,0.38493848,2526.9,2526.7,0.39566]
[1724976275905,0.38493848,2526.9,2526.6,3.60940848]
[1724976276111,0.38493848,2526.9,2526.7,0.39567]
[1724976276797,0.38493848,2526.9,2526.7,3.60347]
[1724976277698,0.38493848,2526.9,2526.7,3.2078]
[1724976277903,0.39565,2526.8,2526.7,3.2078]
[1724976279706,1.38485,2526.7,2526.6,0.00593848]
[1724976279903,5.71105,2526.7,2526.6,0.00593848]
[1724976280104,17.22982613,2526.7,2526.6,0.00593848]
[1724976280708,20.64982613,2526.7,2526.6,0.00593848]
[1724976280905,0.98922,2526.6,2526.1,4.107]
[1724976281206,1.02942418,2526.5,2526.1,4.107]
[1724976281408,1.41882418,2526.5,2526.1,4.107]
[1724976281611,1.41882418,2526.5,2526.1,4.50276]
[1724976281612,0.3894,2526.5,2526.1,4.50276]
[1724976282120,0.3894,2526.5,2526.2,3.42]
[1724976282302,0.78511,2526.5,2526.2,3.42]
[1724976282503,0.39572,2526.4,2526.2,3.42]
[1724976282699,0.3894,2526.5,2526.2,3.42]
[1724976282700,0.39573,2526.3,2526.2,3.42]
[1724976282900,0.39573,2526.3,2526.0,7.02950848]
[1724976283115,0.39572,2526.4,2526.0,7.02950848]
[1724976284108,0.3786,2526.3,2526.0,7.02950848]
[1724976284614,0.77433,2526.3,2526.0,6.63373848]
[1724976285303,0.77433,2526.3,2526.0,7.02951848]
[1724976285507,0.3786,2526.3,2526.0,7.02951848]
[1724976286126,0.77433,2526.3,2526.0,7.02951848]
[1724976286915,0.3786,2526.3,2526.0,7.02951848]
[1724976287908,0.77434,2526.3,2526.0,7.02951848]
[1724976288107,0.77434,2526.3,2526.0,6.63373848]
[1724976288309,0.3786,2526.3,2526.0,3.21373848]
[1724976288504,0.39576,2526.1,2526.0,3.21373848]
[1724976288707,0.39576,2526.1,2526.0,0.00593848]
[1724976288708,1.38518,2526.1,2526.0,0.00593848]
[1724976288907,0.39585,2525.6,2525.3,3.7819]
[1724976289208,0.39587,2525.5,2525.2,3.2078]
[1724976289413,0.39589,2525.3,2525.1,4.107]
[1724976289807,1.14718,2525.4,2525.1,4.107]
[1724976290015,0.7513,2525.4,2525.1,4.107]
[1724976290205,0.7513,2525.4,2525.1,5.4930301]
[1724976290405,0.7513,2525.4,2525.1,8.9130301]
[1724976290614,1.03768069,2525.5,2525.2,0.3959]
[1724976290815,0.00593848,2525.5,2525.3,3.42]
[1724976291212,0.00593848,2525.5,2525.2,3.2078]
[1724976291413,0.40179848,2525.5,2525.2,3.2078]
[1724976291807,0.00593848,2525.5,2525.2,3.2078]
[1724976292010,0.3694,2525.4,2525.2,3.2078]
[1724976294505,0.00593848,2525.5,2525.3,3.42]
[1724976295109,0.40179848,2525.5,2525.2,3.2078]
[1724976295309,0.00593848,2525.5,2525.2,3.2078]
[1724976295506,0.40179848,2525.5,2525.2,3.2078]
[1724976295719,0.00593848,2525.5,2525.2,3.2078]
[1724976297211,0.00593848,2525.5,2525.1,3.42]
[1724976297212,0.39589,2525.3,2525.1,3.42]
[1724976297519,0.39588,2525.4,2525.1,3.42]
[1724976297717,0.00593848,2525.5,2525.3,3.42]
[1724976298915,0.40179848,2525.5,2525.3,3.42]
[1724976299720,0.00593848,2525.5,2525.3,3.42]
[1724976300115,0.40179848,2525.5,2525.3,3.42]
[1724976300316,0.00593848,2525.5,2525.3,3.42]
[1724976300713,0.00593848,2525.5,2525.2,3.2078]
[1724976301127,0.00593848,2525.5,2525.3,0.39588]
[1724976301507,0.40179848,2525.5,2525.2,6.6278]
[1724976301712,0.00593848,2525.5,2525.2,6.6278]
[1724976302111,0.00593848,2525.5,2525.2,3.2078]
[1724976303112,0.40179848,2525.5,2525.2,3.2078]
[1724976303825,0.39589,2525.3,2525.2,3.2078]
[1724976304212,0.39589,2525.3,2525.2,7.1678]
[1724976304808,0.00593848,2525.5,2525.2,7.1678]
[1724976305013,0.00593848,2525.5,2524.9,3.42593848]
[1724976305014,0.39591,2525.2,2524.9,3.21373848]
[1724976305415,0.3734,2525.1,2524.9,3.21373848]
[1724976305632,0.76932,2525.1,2524.9,3.21373848]
[1724976305820,0.39594,2525.0,2524.9,3.21373848]
[1724976306228,0.76384,2525.0,2524.9,3.21373848]
[1724976306436,0.76384,2525.0,2524.9,0.00593848]
[1724976306437,4.72464,2525.0,2524.9,0.00593848]
[1724976306731,4.72464,2525.0,2524.5,3.2078]
[1724976306732,0.396,2524.6,2524.5,3.2078]
[1724976307033,0.98993,2524.8,2524.1,4.107]
[1724976307034,0.39603,2524.4,2524.1,4.107]
[1724976307234,0.39603,2524.4,2524.0,3.98038]
[1724976307522,1.16682,2524.5,2524.0,3.98038]
[1724976307724,1.16682,2524.5,2524.0,3.98434744]
[1724976308231,0.7708,2524.5,2524.1,3.81607]
[1724976308415,1.42768221,2525.0,2524.5,0.39601]
[1724976308631,0.39596,2524.9,2524.6,0.3765]
[1724976308821,0.39594,2525.0,2524.6,0.3765]
[1724976309338,3.591,2525.1,2524.6,3.9803]
[1724976309339,3.98693,2525.1,2524.6,3.9803]
[1724976309519,0.39594,2525.0,2524.6,3.5843]
[1724976309720,0.39595,2524.9,2524.6,3.2078]
[1724976310123,0.39597,2524.8,2524.3,7.92304]
[1724976310321,0.39596,2524.9,2524.5,3.2078]
[1724976310531,0.39598,2524.8,2524.5,3.2078]
[1724976310729,0.39596,2524.9,2524.5,3.2078]
[1724976311422,3.591,2525.1,2524.5,6.6278]
[1724976311623,3.98693,2525.1,2524.6,0.76479]
[1724976311927,0.39594,2525.0,2524.6,0.3688]
[1724976313127,0.39594,2525.0,2524.6,0.7648]
[1724976313518,3.98693,2525.1,2524.6,0.7648]
[1724976313729,3.98693,2525.1,2524.7,0.39598]
[1724976313730,3.591,2525.1,2524.7,0.39598]
[1724976314026,0.39595,2524.9,2524.6,0.3688]
[1724976314532,0.39597,2524.8,2524.6,0.3688]
[1724976314727,0.39596,2524.9,2524.6,0.3688]
[1724976315427,0.39597,2524.8,2524.6,0.3688]
[1724976315630,0.39596,2524.9,2524.6,0.3688]
[1724976315827,0.39595,2525.0,2524.6,0.3688]
[1724976316532,0.39595,2525.0,2524.6,0.7648]
[1724976317230,0.39595,2524.9,2524.6,0.3688]
[1724976317530,0.39594,2525.0,2524.6,0.76479]
[1724976317743,0.39594,2525.0,2524.6,0.3688]
[1724976318623,0.39594,2525.0,2524.6,0.7648]
[1724976318824,0.77913,2525.1,2524.7,0.39598]
[1724976319022,0.39594,2525.0,2524.6,0.76479]
[1724976319233,0.39595,2524.9,2524.7,0.152]
[1724976319435,0.39595,2524.9,2524.6,0.3688]
[1724976319736,0.3832,2525.1,2524.6,0.7648]
[1724976319737,0.39595,2525.0,2524.6,0.7648]
[1724976321132,0.3832,2525.1,2524.8,0.39596]
[1724976321335,0.3832,2525.1,2524.8,3.60376]
[1724976321537,0.77912,2525.1,2524.8,3.60376]
[1724976321741,0.77912,2525.1,2524.8,3.2078]
[1724976321923,0.77912,2525.1,2524.8,3.60377]
[1724976322336,0.3832,2525.1,2524.8,3.2078]
[1724976322537,0.3832,2525.1,2524.8,3.60376]
[1724976322725,0.77912,2525.1,2524.8,3.60376]
[1724976322931,0.39595,2524.9,2524.8,3.2078]
[1724976323436,0.39595,2524.9,2524.5,0.39601]
[1724976323437,0.39597,2524.9,2524.5,0.39601]
[1724976323644,0.76547,2524.8,2524.4,3.75583]
[1724976324139,0.39598,2524.7,2524.4,3.75583]
[1724976324332,0.39598,2524.7,2524.4,3.3598]
[1724976324538,0.76548,2524.8,2524.4,3.3598]
[1724976324834,0.3704,2524.6,2524.4,3.3598]
[1724976325232,0.3704,2524.6,2524.5,3.9608]
[1724976325825,0.7664,2524.6,2524.5,3.9608]
[1724976326028,0.7664,2524.6,2524.4,3.2078]
[1724976326230,0.39601,2524.5,2524.4,3.2078]
[1724976326431,0.39606,2524.3,2524.0,3.21176744]
[1724976326639,0.18424628,2524.2,2524.0,3.21176744]
[1724976326939,0.3704,2524.1,2524.0,3.21176744]
[1724976327743,0.18424628,2524.1,2524.0,3.60785744]
[1724976327939,0.18424628,2524.1,2524.0,7.02785744]
[1724976328239,0.3553,2524.6,2524.2,0.39606]
[1724976328240,0.7513,2524.6,2524.2,0.39606]
[1724976328429,0.7513,2524.6,2524.3,3.5927]
[1724976328630,0.3553,2524.6,2524.3,3.98874]
[1724976329350,0.7513,2524.6,2524.3,3.5927]
[1724976330049,0.39601,2524.5,2524.3,0.3849]
[1724976330243,0.39605,2524.3,2524.2,3.2078]
[1724976330633,0.39606,2524.2,2524.0,4.11096744]
[1724976331037,0.3645,2524.1,2524.0,4.11096744]
[1724976331734,0.3657,2524.4,2524.0,7.53096744]
[1724976332042,0.3657,2524.4,2524.1,0.39607]
[1724976336146,0.3657,2524.4,2524.2,3.2078]
[1724976337646,1.03174221,2524.6,2524.3,3.9616]
[1724976337844,1.41364221,2524.8,2524.6,0.39598]
[1724976338040,1.03174221,2524.9,2524.8,0.39597]
[1724976338241,1.41364221,2525.2,2525.1,0.39592]
[1724976338543,1.03174221,2525.4,2525.1,3.60372]
[1724976338742,1.03174221,2525.3,2525.1,3.60372]
[1724976339143,0.3959,2525.2,2525.1,3.2078]
[1724976339342,1.79194221,2525.2,2525.1,3.2078]
[1724976339537,1.42764221,2525.2,2525.1,3.2078]
[1724976339747,1.03174221,2525.2,2525.1,3.2078]
[1724976339950,1.42764221,2525.2,2525.1,3.2078]
[1724976340343,1.03174221,2525.2,2525.1,3.2078]
[1724976340541,1.42764221,2525.2,2525.1,3.2078]
[1724976340746,1.03174221,2525.3,2525.2,0.3959]
[1724976340942,1.41364221,2525.4,2525.2,4.3559]
[1724976341252,1.03768069,2525.5,2525.3,4.35588]
[1724976341457,1.03768069,2525.5,2525.4,3.2078]
[1724976341649,0.00593848,2525.5,2525.4,3.2078]
[1724976341949,0.00593848,2525.5,2525.4,7.1678]
[1724976342151,0.00593848,2525.5,2525.4,3.2078]
[1724976342347,4.36179848,2525.5,2525.4,3.2078]
[1724976342550,5.9094118,2525.5,2525.4,3.2078]
[1724976343457,1.43675144,2525.5,2525.4,3.2078]
[1724976343841,5.39675144,2525.5,2525.4,3.2078]
[1724976344343,1.43675144,2525.5,2525.4,3.2078]
[1724976350763,1.43675144,2525.5,2525.2,3.6037]
[1724976350956,1.43675144,2525.5,2525.2,3.2078]
[1724976351158,1.43675144,2525.5,2525.2,3.6037]
[1724976351353,1.43675144,2525.5,2525.2,3.2078]
[1724976352358,0.40179848,2525.5,2525.2,3.2078]
[1724976352655,1.43675144,2525.5,2525.2,3.2078]
[1724976353256,1.04089144,2525.5,2525.2,6.6278]
[1724976353459,1.04089144,2525.5,2525.4,3.81587]
[1724976353460,0.00593848,2525.5,2525.4,3.81587]
[1724976353854,0.00593848,2525.5,2525.4,7.77587]
[1724976355661,0.00593848,2525.5,2525.3,1.78166717]
[1724976355860,0.00593848,2525.5,2525.3,1.38580002]
[1724976356060,0.00593848,2525.5,2525.4,0.39587]
[1724976356256,0.00593848,2525.5,2525.3,0.39588]
[1724976356458,0.00593848,2525.5,2525.3,4.35588]
[1724976356765,0.00593848,2525.5,2525.3,0.39588]
[1724976357059,0.00593848,2525.5,2525.2,4.59363138]
[1724976357260,0.39589,2525.3,2525.2,3.2078]
[1724976357973,0.77469,2525.3,2525.2,3.2078]
[1724976362861,1.76442,2525.3,2525.2,3.2078]
[1724976363057,0.39597,2524.8,2524.7,3.2078]
[1724976363269,1.38589,2524.8,2524.7,3.2078]
[1724976363569,5.39026788,2524.8,2524.7,3.2078]
[1724976363872,2.54961506,2524.8,2524.7,3.2078]
[1724976364364,1.51627,2524.8,2524.7,3.2078]
[1724976364953,1.1203,2524.8,2524.7,3.2078]
[1724976366260,1.51627,2524.8,2524.7,3.2078]
[1724976366655,1.1203,2524.8,2524.7,3.2078]
[1724976367755,0.39598,2524.7,2524.4,8.38327589]
[1724976368068,0.39598,2524.7,2524.4,4.96327589]
[1724976368268,1.51627,2524.8,2524.4,5.35930589]
[1724976368454,1.51627,2524.8,2524.4,3.97323]
[1724976368968,1.51627,2524.8,2524.4,5.35930589]
[1724976369170,1.51627,2524.8,2524.4,3.97323]
[1724976369363,1.51627,2524.8,2524.4,5.35930589]
[1724976369565,0.39599,2524.7,2524.4,3.5772]
[1724976373471,0.39599,2524.7,2524.4,4.96355081]
[1724976373775,1.1203,2524.8,2524.4,3.2078]
[1724976373974,2.15364506,2524.8,2524.4,3.2078]
[1724976374170,0.39601,2524.5,2524.4,3.2078]
[1724976375478,5.34765,2524.5,2524.4,3.2078]
[1724976375676,6.38099506,2524.5,2524.4,3.2078]
[1724976375975,6.3819532,2524.5,2524.4,3.2078]
[1724976376274,2.4203532,2524.5,2524.4,3.2078]
[1724976376476,1.4303132,2524.5,2524.4,3.2078]
[1724976376784,0.39601,2524.5,2524.4,3.2078]
[1724976376970,0.39601,2524.6,2524.4,3.2078]
[1724976377469,1.4303132,2524.6,2524.4,3.2078]
[1724976378177,0.39601,2524.5,2524.4,3.2078]
[1724976379183,0.39601,2524.5,2524.3,3.2078]
[1724976379978,0.39603,2524.4,2524.3,3.2078]
[1724976381082,0.39608,2524.1,2524.0,1.39058326]
[1724976381884,0.39608,2524.1,2524.0,0.00396744]
[1724976382677,0.3526,2524.3,2524.0,7.78165744]
[1724976382878,0.3526,2524.3,2524.1,3.97788]
[1724976383185,0.3526,2524.3,2524.1,3.5818]
[1724976384186,0.39606,2524.2,2524.0,0.00396744]
[1724976384371,0.3571,2524.2,2524.0,0.00396744]
[1724976384684,0.3571,2524.2,2524.1,3.2078]
[1724976386283,4.3187,2524.2,2524.0,0.00396744]
[1724976386471,0.39608,2524.1,2524.0,0.00396744]
[1724976386677,1.4303832,2524.1,2524.0,0.00396744]
[1724976387276,1.42949757,2524.1,2524.0,0.00396744]
[1724976387585,0.39608,2524.1,2524.0,0.00396744]
[1724976389986,0.39608,2524.1,2524.0,0.32086744]
[1724976390991,0.75317,2524.2,2524.0,0.32086744]
[1724976391299,1.38601757,2524.3,2524.0,0.32086744]
[1724976391300,0.74866,2524.3,2524.0,0.32086744]
[1724976391588,1.11806,2524.3,2524.2,3.2078]
[1724976392692,0.39608,2524.1,2524.0,0.32086744]
[1724976393085,4.35768,2524.1,2524.0,0.32086744]
[1724976393283,5.39109757,2524.1,2524.0,0.32086744]
[1724976394286,4.35768,2524.1,2524.0,0.32086744]
[1724976394802,5.39109757,2524.1,2524.0,0.32086744]
[1724976395295,4.35768,2524.1,2524.0,0.32086744]
[1724976397203,0.39612,2523.8,2523.7,3.2078]
[1724976397592,4.35852,2523.8,2523.7,3.2078]
[1724976398193,4.35852,2523.8,2523.7,2.0344]
[1724976398391,4.35852,2523.8,2523.4,4.107]
[1724976398392,0.39617,2523.5,2523.4,4.107]
[1724976398590,0.39619,2523.4,2523.1,3.60402]
[1724976399012,0.39619,2523.4,2523.1,3.96562]
[1724976400006,0.39619,2523.4,2523.1,3.5694]
[1724976401301,3.42,2523.5,2522.8,4.107]
[1724976401503,3.42,2523.5,2522.7,7.0972]
[1724976401504,0.39626,2523.0,2522.7,7.0972]
[1724976402109,0.39625,2523.1,2522.7,7.0972]
[1724976403012,0.39625,2523.1,2522.7,7.4935]
[1724976403406,0.39625,2523.1,2522.7,7.0972]
[1724976403709,0.39625,2523.1,2522.7,7.1997]
[1724976403909,0.39625,2523.1,2522.7,7.3365]
[1724976404419,0.3831,2523.2,2522.7,7.73279]
[1724976404420,0.77933,2523.2,2522.7,7.73279]
[1724976404710,0.77933,2523.2,2522.7,7.93729]
[1724976405317,1.03341757,2523.6,2523.1,3.42]
[1724976405617,0.39619,2523.4,2523.2,0.7759]
[1724976405812,1.03341757,2523.6,2523.2,0.7759]
[1724976406010,0.39619,2523.4,2523.2,0.7759]
[1724976406315,2.02384757,2523.6,2523.1,3.2078]
[1724976406515,0.39622,2523.2,2523.1,3.2078]
[1724976407112,0.78582,2523.2,2523.1,3.2078]
[1724976408308,0.39628,2522.8,2522.7,3.6516]
[1724976409212,0.39628,2522.8,2522.7,0.4438]
[1724976409404,5.35099,2522.8,2522.7,0.4438]
[1724976412913,19.3197945,2522.8,2522.7,0.4438]
[1724976413417,0.39633,2522.5,2522.4,3.2078]
[1724976413916,4.36033,2522.5,2522.4,3.2078]
[1724976414620,4.74323,2522.5,2522.4,3.2078]
[1724976416423,0.39641,2522.0,2521.9,3.2078]
[1724976416622,0.39646,2521.7,2521.4,0.7236]
[1724976417023,0.39647,2521.6,2521.4,0.7236]
[1724976417521,0.39646,2521.7,2521.4,0.7236]
[1724976419418,0.3654,2521.9,2521.4,0.7236]
[1724976419629,0.76182,2521.9,2521.5,3.2078]
[1724976420618,0.99087,2522.4,2521.8,3.2078]
[1724976420918,0.3964,2522.1,2521.8,3.2078]
[1724976421220,0.39641,2522.0,2521.8,3.2078]
[1724976421421,0.3964,2522.1,2521.8,3.2078]
[1724976421629,0.39641,2522.0,2521.8,3.2078]
[1724976421823,0.3964,2522.1,2521.8,3.2078]
[1724976422216,0.3568,2522.3,2521.9,0.77652]
[1724976422416,7.9787,2522.5,2521.9,0.7513]
[1724976422624,4.174,2522.5,2522.2,3.2078]
[1724976422927,4.174,2522.5,2522.3,0.361]
[1724976423421,4.174,2522.5,2522.4,0.3801]
[1724976423624,0.00593848,2522.7,2522.6,0.39631]
[1724976423830,0.3847,2523.4,2522.6,6.6278]
[1724976424030,0.3847,2523.4,2523.1,3.2078]
[1724976424422,0.7809,2523.4,2523.1,3.2078]
[1724976424923,0.3847,2523.4,2523.1,3.2078]
[1724976425125,0.40211848,2523.5,2523.1,3.95803]
[1724976425126,0.00593848,2523.5,2523.1,3.95803]
[1724976425930,0.40210848,2523.5,2523.1,3.5618]
[1724976426118,0.3962,2523.4,2523.1,3.5618]
[1724976426431,0.39622,2523.2,2523.1,3.5618]
[1724976426623,0.39622,2523.2,2523.1,3.2078]
[1724976426926,4.35942,2523.2,2523.1,3.2078]
[1724976427323,4.35942,2523.2,2523.0,0.00593848]
[1724976427324,0.39623,2523.1,2523.0,0.00593848]
[1724976427519,5.73882,2523.1,2523.0,0.00593848]
[1724976427720,11.73882,2523.1,2523.0,0.00593848]
[1724976427931,4.74823,2523.1,2523.0,0.00593848]
[1724976428232,0.78503,2523.1,2523.0,0.00593848]
[1724976429115,0.39623,2523.1,2523.0,0.00593848]
[1724976430425,2.39299605,2523.5,2523.1,0.39623]
[1724976430426,1.40255605,2523.5,2523.1,0.39623]
[1724976430730,0.00593848,2523.5,2523.2,0.3858]
[1724976430941,0.00593848,2523.5,2523.2,3.8058]
[1724976431226,0.00593848,2523.5,2523.4,3.2078]
[1724976432630,0.40210848,2523.5,2523.4,3.2078]
[1724976433925,0.00593848,2523.5,2523.4,3.2078]
[1724976434733,0.00593848,2523.5,2523.4,3.60399]
[1724976435034,0.00593848,2523.5,2523.4,3.2078]
[1724976440135,0.00593848,2523.5,2523.4,7.171]
[1724976443131,0.00593848,2523.5,2523.4,7.56719]
[1724976443829,0.00593848,2523.5,2523.4,10.98719]
[1724976448435,0.00593848,2523.5,2523.4,7.77939]
[1724976448933,0.00593848,2523.5,2523.4,10.98719]
[1724976449439,0.00593848,2523.5,2523.4,10.591]
[1724976450430,0.40210848,2523.5,2523.4,3.2078]
[1724976451228,0.40210848,2523.5,2523.4,7.171]
[1724976451433,0.40210848,2523.5,2523.4,3.2078]
[1724976451635,0.40210848,2523.5,2523.4,7.171]
[1724976451830,0.40210848,2523.5,2523.4,3.2078]
[1724976452026,0.40210848,2523.5,2523.4,7.171]
[1724976452231,0.40210848,2523.5,2523.4,3.2078]
[1724976453443,0.00593848,2523.5,2523.4,6.6278]
[1724976453642,0.40210848,2523.5,2523.4,6.6278]
[1724976454346,0.00593848,2523.5,2523.4,6.6278]
[1724976455440,0.40210848,2523.5,2523.4,6.6278]
[1724976455937,0.00593848,2523.5,2523.4,6.6278]
[1724976456939,1.03341757,2524.2,2523.4,20.011]
[1724976457140,0.7596,2524.5,2524.1,6.6278]
[1724976457343,1.03341757,2525.0,2524.4,3.2078]
[1724976457542,0.7596,2525.0,2524.6,3.42]
[1724976458249,0.39597,2524.8,2524.6,3.42]
[1724976458442,0.39596,2524.9,2524.6,3.42]
[1724976459040,0.7596,2525.0,2524.5,0.00593848]
[1724976459343,0.396,2524.6,2524.5,0.00593848]
[1724976459740,4.3568,2524.6,2524.5,0.00593848]
[1724976460451,10.3568,2524.6,2524.5,0.00593848]
[1724976460745,4.3568,2524.6,2524.5,0.00593848]
[1724976460943,3.9608,2524.6,2524.5,0.00593848]
[1724976461151,0.39597,2524.8,2524.5,0.00593848]
[1724976461751,0.39596,2524.9,2524.5,3.42593848]
[1724976461939,0.39596,2524.9,2524.5,3.82194848]
[1724976462146,3.9674,2525.0,2524.5,3.82194848]
[1724976462454,4.36334,2525.0,2524.5,3.82194848]
[1724976462645,4.36334,2525.0,2524.5,4.19364848]
[1724976462945,3.9674,2525.0,2524.5,0.00593848]
[1724976463146,0.396,2524.7,2524.5,0.00593848]
[1724976463840,3.9674,2525.0,2524.5,0.00593848]
[1724976464042,0.778,2524.6,2524.5,0.00593848]
[1724976464241,0.382,2524.6,2524.5,0.00593848]
[1724976464544,5.00081757,2525.0,2524.5,0.00593848]
[1724976464742,0.75956,2524.9,2524.5,0.00593848]
[1724976464938,0.75956,2524.9,2524.5,3.42593848]
[1724976465651,0.3636,2524.9,2524.5,0.00593848]
[1724976465847,0.39597,2524.8,2524.5,0.00593848]
[1724976466053,0.75956,2524.9,2524.5,0.00593848]
[1724976466345,0.75956,2524.9,2524.5,3.42593848]
[1724976466546,0.3636,2524.9,2524.5,3.42593848]
[1724976466753,0.3636,2524.9,2524.6,0.396]
[1724976466940,1.03935605,2525.1,2525.0,0.39594]
[1724976466941,0.00593848,2525.1,2525.0,0.39594]
[1724976467144,1.03341757,2525.5,2525.3,0.39589]
[1724976467344,0.352,2525.8,2525.4,10.5878]
[1724976467648,0.352,2525.8,2525.7,3.42]
[1724976467850,0.352,2525.8,2525.7,6.6278]
[1724976470354,0.352,2525.8,2525.7,3.2078]
[1724976471441,4.70701,2525.8,2525.4,3.2078]
[1724976471646,0.352,2525.8,2525.5,3.42]
[1724976471856,0.74781,2525.8,2525.5,3.42]
[1724976472057,0.74781,2525.8,2525.4,3.2078]
[1724976473249,0.352,2525.8,2525.4,3.2078]
[1724976473451,0.98965,2525.5,2524.7,3.2078]
[1724976473751,0.39591,2525.2,2524.7,3.2078]
[1724976474158,0.7153,2525.4,2524.5,8.67293848]
[1724976474356,0.396,2524.6,2524.5,4.11293848]
[1724976474657,0.396,2524.6,2524.5,0.00593848]
[1724976475360,0.75986,2524.9,2524.5,0.00593848]
[1724976475554,0.39597,2524.8,2524.5,0.00593848]
[1724976475860,0.75986,2524.9,2524.5,0.00593848]
[1724976476153,0.3639,2524.9,2524.5,0.00593848]
[1724976476354,0.3639,2524.9,2524.6,3.2078]
[1724976477549,0.3639,2524.9,2524.6,3.6038]
[1724976477749,0.3888,2525.0,2524.6,3.2078]
[1724976477955,3.5887,2525.3,2524.8,4.56]
[1724976478458,3.5887,2525.3,2524.8,4.95596]
[1724976478858,0.3809,2525.3,2525.0,3.2078]
[1724976479552,0.3809,2525.3,2525.1,4.56]
[1724976482160,0.3659,2525.6,2525.1,8.91592]
[1724976482354,0.3659,2525.6,2525.3,3.2078]
[1724976483062,0.39587,2525.4,2525.3,3.2078]
[1724976483358,0.39587,2525.5,2525.3,3.2078]
[1724976483566,0.39587,2525.4,2525.3,3.2078]
[1724976483864,0.74907,2525.4,2525.3,3.2078]
[1724976484160,0.3532,2525.4,2525.3,3.2078]
[1724976484856,0.74907,2525.4,2525.3,3.2078]
[1724976487866,4.70907,2525.4,2525.3,3.2078]
[1724976488158,0.39594,2525.0,2524.9,4.107]